{"text_format":"1","workbook":"xlsx","n_sheets":10,"sheets":["Start","A1","A2","A3","A4","A5","A6","A7","A8 Water & Carbonated (Bubbly)","A9 All Other Beverages"],"not_rendered":{"charts":0,"images":0,"macros":1,"external_links":0,"defined_names":0,"comments":0,"pivot_tables":0},"unopened":[],"bounds":{"document_bytes":16777216,"sheet_cells":100000,"rows_first":2000,"rows_last":500,"rows_between":2000,"halvings":0,"cell_chars":16384,"cell_head_chars":4096},"cells_cut":0,"cells_raw":0,"read":"whole","date_system":"1900"}

{"sheet":"Start","index":0,"n_rows":42,"n_cols":2,"rows_kept":42,"cut":false,"hidden":false,"merged":[[25,0,28,0],[7,0,7,2],[33,0,33,1],[36,0,36,1],[11,0,24,0],[35,0,35,1],[0,0,0,3],[2,0,2,2],[5,0,5,2],[6,0,6,2],[6,5,6,13],[1,0,1,2]]}
[]
[]
["Please click on the 'enable content' button on the security warning yellow band before you start. "]
["Use this calculation to help you determine if your product meets the 'Sell More Nutrient Criteria.’"]
[]
["Step 1: Choose the category.  "]
["For food products:  Choose a category that best describes your item. Use the nutrition content for the product (from recipe analysis, food packaging or suppliers) and figure out how many calories are in a serving. "]
["For beverages: Choose a beverage category. "]
[]
[]
[null,"Use this category (click)"]
["FOOD","A.1 All Entrees 351-800 calories"]
[null,"All Entrees greater than 800 calories are 'Do Not Sell'"]
[null,"A.2 Side Dishes & Snacks with ≤ 350 calories"]
[null,"All side dishes & snacks greater than 350 calories are 'Do Not Sell'"]
[null,"A.3 Soups with ≤ 300 calories"]
[null,"All soups greater than 300 calories are 'Do Not Sell'"]
[null,"A.4 Baked Goods with ≤ 350 calories"]
[null,"All sweet baked goods greater than 350 calories are 'Do Not Sell'"]
[null,"A.5 Desserts with ≤ 250 calories"]
[null,"Cakes or squares greater than 250 calories are 'Do Not Sell'"]
[null,"A.6 Packaged Snacks with ≤ 250 calories"]
[null,"Packaged snacks that are greater than 250 calories are 'Do Not Sell'"]
[null,"A.7 Nuts, Trail Mix, Fruit & Nut Bars ≤ 350 calories"]
[null,"If greater than 350 calories  'Do Not Sell'"]
["BEVERAGES","A.8 Water & Carbonated (Bubbly) Water"]
[null,"(Water and Non-Sweetened Carbonated Drinks)"]
[null,"A.9 All Other Beverages"]
[]
[]
[]
[]
[]
["Step 2: Enter product's nutrient content. All nutrient values for a category must be entered to get the result."]
[]
["Step 3: Save your results. "]
["Save the sheet as a new file to preserve the product information you entered or transfer the information to another document to keep track of items that meet the Guidelines."]
[]
[]
[null,"©2023 Alberta Health Services, Nutrition Services. This work is licensed under the Creative Commons Attribution-Non-Commercial-No Derivatives 4.0 International License except where otherwise indicated. To view a copy of this license, visit http://creativecommons.org/licenses/by-nc-nd/4.0/ "]
[]
[null,"This material is provided on an \"as is\", \"where is\" basis. Although reasonable efforts were made to confirm the accuracy of the information, Alberta Health Services does not make any representation or warranty, express, implied or statutory, as to the accuracy, reliability, completeness, applicability or fitness for a particular purpose of such information. This material is not a substitute for the advice of a qualified health professional. Alberta Health Services expressly disclaims all liability for the use of these materials, and for any claims, actions, demands or suits arising from such use. May 2023"]

{"sheet":"A1","index":1,"n_rows":40,"n_cols":14,"rows_kept":40,"cut":false,"hidden":false,"merged":[[2,0,2,4],[3,0,3,8],[4,0,4,8],[5,0,5,8],[6,0,6,8],[10,0,10,9],[11,0,11,9],[12,0,12,9],[21,0,21,1],[18,0,18,9],[19,0,19,1],[37,0,37,3],[38,0,38,3],[39,0,39,3],[20,0,20,1],[21,5,21,9],[20,5,20,9],[25,0,25,9]]}
["A.1 Entrees with 351 - 800 calories",null,null,null,null,null,null,null,null,null,null,null,"Return to Start","Return to Start"]
[]
["Step 1: Determine if this product is 'Do Not Sell'. "]
["Please answer all of the following questions using the dropdown selection on the right. "]
["Will this item be cooked in a deep-fryer? \n "]
["Does this item contain more than 2 cups (500 mL) per serving of any type of cooked grain? (e.g. rice, pasta, barley, bulgur, couscous, quinoa)"]
["Does this item have more than 800 calories?",null,null,null,null,null,null,null,null,null,null,null,{"$f":"COUNTIF(J5:J7,\"No\")","v":0}]
[]
[]
[]
[{"$f":"IF(COUNTIF(J5:J7,\"Yes\"),\"This is a ‘Do Not Sell’ item. Refer to the minimum criteria in the Nutrition Guidelines for Food and Beverages in AHS Facilities for more information.'\", IF(COUNTIF(J5:J7,\"\"),\"\",\"Please Proceed to Step 2.\"))","v":""}]
[{"$f":"IF(A11=\"This is a ‘Do Not Sell’ item. Refer to the minimum criteria in the Nutrition Guidelines for Food and Beverages in AHS Facilities for more information.'\",\"For this item to be 'Sell More', the questions above must all be answered 'No'.\",\"\" )","v":""}]
[{"$f":"IF(A11=\"This is a ‘Do Not Sell’ item. Refer to the minimum criteria in the Nutrition Guidelines for Food and Beverages in AHS Facilities for more information.'\", \"Hit the 'Clear All' button to compare another item\",\"\")","v":""}]
[]
[]
[]
[]
[{"$f":"IF(OR(J5:J7=\"\"),\"\",\"Step 2: Determine if this item is 'Sell More'\")","v":""}]
[{"$f":"IF(A18=\"Step 2: Determine if this item is 'Sell More'\",\"Please enter the item's nutrient content below.\",\"\")","v":""}]
[{"$f":"IF(A18=\"Step 2: Determine if this item is 'Sell More'\",\"Nutrient\",\"\")","v":""},null,{"$f":"IF(A18=\"Step 2: Determine if this item is 'Sell More'\",\"Enter Value\",\"\")","v":""},null,null,{"$f":"IF(A18=\"Step 2: Determine if this item is 'Sell More'\",\"Legend:\",\"\")","v":""}]
[{"$f":"IF(A18=\"Step 2: Determine if this item is 'Sell More'\",\"Saturated Fat (g)\",\"\")","v":""},null,null,null,null,{"$f":"IF(A18=\"Step 2: Determine if this item is 'Sell More'\",\"Meets Criteria\",\"\")","v":""},null,null,null,null,null,null,{"$f":"IF(C21=\"\",\"\",IF(C21<9,0,IF(C21>=8,1,0)))","v":""}]
[{"$f":"IF(A18=\"Step 2: Determine if this item is 'Sell More'\",\"Sodium (mg)\",\"\")","v":""},null,null,null,null,{"$f":"IF(A18=\"Step 2: Determine if this item is 'Sell More'\",\"Does not Meet Criteria\",\"\")","v":""},null,null,null,null,null,null,{"$f":"IF(C22=\"\",\"\",IF(C22<701,0,IF(C22>=700,1)))","v":""}]
[]
[]
[]
[{"$f":"IF(OR(M21=\"\",M22=\"\"),\"\",IF(SUM(M21:M22)=0,\"This item is 'Sell More'\",\"This item does not meet criteria. Refer to ‘Appendix C in the Nutrition Guidelines for Food and Beverages in AHS Facilities for ideas on how to make this item healthier.\"))","v":""}]
[{"$f":"IF(A26=\"This item does not meet criteria. Refer to ‘Appendix C in the Nutrition Guidelines for Food and Beverages in AHS Facilities for ideas on how to make this item healthier.\", \"There is more than one nutrient that does not meet the criteria.\",\"\")","v":""}]
[{"$f":"IF(A26=\"This item does not meet criteria. Refer to ‘Appendix C in the Nutrition Guidelines for Food and Beverages in AHS Facilities for ideas on how to make this item healthier.\",\"For this item to be 'Sell More', there must be no red boxes.\",\"\")","v":""}]
[{"$f":"IF(A26=\"This item is 'Sell Less'\",\"Use the nutrient criteria at the bottom of the page to make this product healthier.\",\"\")","v":""}]
[]
[]
[]
[]
[]
["Criteria"]
["A.1 All Entries 351-800 calories"]
[]
["Nutrient ",null,null,null,"Criteria"]
["Saturated Fat",null,null,null,"≤ 8 g"]
["Sodium ",null,null,null,"≤ 700 mg"]

{"sheet":"A2","index":2,"n_rows":41,"n_cols":14,"rows_kept":41,"cut":false,"hidden":false,"merged":[[10,0,10,9],[2,0,2,4],[3,0,3,8],[4,0,4,8],[5,0,5,8],[6,0,6,8],[40,0,40,3],[39,0,39,3],[11,0,11,9],[12,0,12,9],[19,0,19,1],[20,0,20,1],[20,5,20,9],[21,0,21,1],[21,5,21,9],[37,0,37,3],[38,0,38,3],[22,0,22,1],[25,0,25,9]]}
["A.2 Side Dishes & Snacks ≤350 calories",null,null,null,null,null,null,null,null,null,null,null,"Return to Start","Return to Start"]
[]
["Step 1: Determine if this product is 'Do Not Sell'. "]
["Please answer all of the following questions using the dropdown selection on the right. "]
["Will this item be cooked in a deep-fryer? \n "]
["Does this item contain more than 2 cups (500 mL) per serving of any type of cooked grain? (e.g. rice, pasta, barley, bulgur, couscous, quinoa)"]
["Does this item have more than 350 calories? ",null,null,null,null,null,null,null,null,null,null,null,{"$f":"COUNTIF(J5:J7,\"No\")","v":0}]
[]
[]
[]
[{"$f":"IF(COUNTIF(J5:J7,\"Yes\"),\"This is a ‘Do Not Sell’ item. Refer to the minimum criteria in the Nutrition Guidelines for Food and Beverages in AHS Facilities for more information.'\", IF(COUNTIF(J5:J7,\"\"),\"\",\"Please Proceed to Step 2 below.\"))","v":""}]
[{"$f":"IF(A11=\"This is a ‘Do Not Sell’ item. Refer to the minimum criteria in the Nutrition Guidelines for Food and Beverages in AHS Facilities for more information.'\",\"For this item to be 'Sell More', the questions above must all be answered 'No'.\",\"\" )","v":""}]
[{"$f":"IF(A11=\"This is a ‘Do Not Sell’ item. Refer to the minimum criteria in the Nutrition Guidelines for Food and Beverages in AHS Facilities for more information.'\", \"Hit the 'Clear All' button to compare another item\",\"\")","v":""}]
[]
[]
[]
[]
[{"$f":"IF(OR(J5:J7=\"\"),\"\",\"Step 2: Determine if this item is 'Sell More'\")","v":""}]
[{"$f":"IF(A18=\"Step 2: Determine if this item is 'Sell More'\",\"Please enter the item's nutrient content below.\",\"\")","v":""}]
[{"$f":"IF(A18=\"Step 2: Determine if this item is 'Sell More'\",\"Nutrient\",\"\")","v":""},null,{"$f":"IF(A18=\"Step 2: Determine if this item is 'Sell More'\",\"Enter Value\",\"\")","v":""},null,null,{"$f":"IF(A18=\"Step 2: Determine if this item is 'Sell More'\",\"Legend:\",\"\")","v":""}]
[{"$f":"IF(A18=\"Step 2: Determine if this item is 'Sell More'\",\"Saturated Fat (g)\",\"\")","v":""},null,null,null,null,{"$f":"IF(A18=\"Step 2: Determine if this item is 'Sell More'\",\"Meets Criteria\",\"\")","v":""},null,null,null,null,null,null,{"$f":"IF(C21=\"\",\"\",IF(C21<3.5,0,IF(C21>=3.6,1,0)))","v":""}]
[{"$f":"IF(A18=\"Step 2: Determine if this item is 'Sell More'\",\"Sodium (mg)\",\"\")","v":""},null,null,null,null,{"$f":"IF(A18=\"Step 2: Determine if this item is 'Sell More'\",\"Does not Meet Criteria\",\"\")","v":""},null,null,null,null,null,null,{"$f":"IF(C22=\"\",\"\",IF(C22<501,0,IF(C22>=500,1)))","v":""}]
[{"$f":"IF(A18=\"Step 2: Determine if this item is 'Sell More'\",\"Sugar (mg)\",\"\")","v":""},null,null,null,null,null,null,null,null,null,null,null,{"$f":"IF(C23=\"\",\"\",IF(C23<21,0,IF(C23>=20,1)))","v":""}]
[]
[]
[{"$f":"IF(OR(M21=\"\",M22=\"\",M23=\"\"),\"\",IF(SUM(M21:M23)=0,\"This item is 'Sell More'\",\"This item does not meet criteria. Refer to ‘Appendix C in the Nutrition Guidelines for Food and Beverages in AHS Facilities for ideas on how to make this item healthier.'\"))","v":""}]
[{"$f":"IF(A26=\"This item does not meet criteria. Refer to ‘Appendix C in the Nutrition Guidelines for Food and Beverages in AHS Facilities for ideas on how to make this item healthier.'\", \"There is more than one nutrient that does not meet the criteria.\",\"\")","v":""}]
[{"$f":"IF(A26=\"This item does not meet criteria. Refer to ‘Appendix C in the Nutrition Guidelines for Food and Beverages in AHS Facilities for ideas on how to make this item healthier.'\",\"For this item to be 'Sell More', there must be no red boxes.\",\"\")","v":""}]
[{"$f":"IF(A26=\"This item is 'Sell Less'\",\"Use the nutrient criteria at the bottom of the page to make this product healthier.\",\"\")","v":""}]
[]
[]
[]
[]
[]
["Criteria"]
["A.2 Side Dishes & Snacks ≤350 calories"]
[]
["Nutrient ",null,null,null,"Criteria"]
["Saturated Fat",null,null,null,"≤ 3.5 g"]
["Sodium ",null,null,null,"≤ 500 mg"]
["Sugar ",null,null,null,"≤ 20 mg"]

{"sheet":"A3","index":3,"n_rows":40,"n_cols":14,"rows_kept":40,"cut":false,"hidden":false,"merged":[[10,0,10,9],[2,0,2,4],[3,0,3,8],[4,0,4,8],[39,0,39,3],[11,0,11,9],[19,0,19,1],[20,0,20,1],[21,0,21,1],[37,0,37,3],[38,0,38,3],[21,5,21,8],[20,5,20,8],[18,0,18,2],[25,0,25,9]]}
["A.3 Soups with ≤ 300 calories",null,null,null,null,null,null,null,null,null,null,null,"Return to Start","Return to Start"]
[]
["Step 1: Determine if this product is 'Do Not Sell'. "]
["Please answer all of the following questions using the dropdown selection on the right. "]
["Does this item have more than 300 calories?",null,null,null,null,null,null,null,null,null,null,null,{"$f":"COUNTIF(J5:J5,\"No\")","v":0}]
[]
[]
[]
[]
[]
[{"$f":"IF(COUNTIF(J5,\"Yes\"),\"For chili and stew, please use A1 to analyze your item. Other soups that are greater than 300 calories do not meet the Sell More Criteria\", IF(COUNTIF(J5,\"\"),\"\",\"Please Proceed to Step 2 below.\"))","v":""}]
[{"$f":"IF(A11=\"This is a ‘Do Not Sell’ item. Refer to the minimum criteria in the Nutrition Guidelines for Food and Beverages in AHS Facilities for more information.\", \"Hit the 'Clear All' button to compare another item\",\"\")","v":""}]
[]
[]
[]
[]
[]
[{"$f":"IF(OR(J5:J5=\"\"),\"\",\"Step 2: Determine if this item is 'Sell More'\")","v":""}]
[{"$f":"IF(A18=\"Step 2: Determine if this item is 'Sell More'\",\"Please enter the item's nutrient content below.\",\"\")","v":""}]
[{"$f":"IF(A18=\"Step 2: Determine if this item is 'Sell More'\",\"Nutrient\",\"\")","v":""},null,{"$f":"IF(A18=\"Step 2: Determine if this item is 'Sell More'\",\"Enter Value\",\"\")","v":""},null,null,{"$f":"IF(A18=\"Step 2: Determine if this item is 'Sell More'\",\"Legend:\",\"\")","v":""}]
[{"$f":"IF(A18=\"Step 2: Determine if this item is 'Sell More'\",\"Saturated Fat (g)\",\"\")","v":""},null,null,null,null,{"$f":"IF(A18=\"Step 2: Determine if this item is 'Sell More'\",\"Meets Criteria\",\"\")","v":""},null,null,null,null,null,null,{"$f":"IF(C21=\"\",\"\",IF(C21<2.1,0,IF(C21>=2,1,0)))","v":""}]
[{"$f":"IF(A18=\"Step 2: Determine if this item is 'Sell More'\",\"Sodium (mg)\",\"\")","v":""},null,null,null,null,{"$f":"IF(A18=\"Step 2: Determine if this item is 'Sell More'\",\"Does not Meet Criteria\",\"\")","v":""},null,null,null,null,null,null,{"$f":"IF(C22=\"\",\"\",IF(C22<401,0,IF(C22>=400,1)))","v":""}]
[]
[]
[]
[{"$f":"IF(OR(M21=\"\",M22=\"\"),\"\",IF(SUM(M21:M22)=0,\"This item is 'Sell More'\",\"This item does not meet criteria. Refer to ‘Appendix C in the Nutrition Guidelines for Food and Beverages in AHS Facilities for ideas on how to make this item healthier.'\"))","v":""}]
[{"$f":"IF(A26=\"This item does not meet criteria. Refer to ‘Appendix C in the Nutrition Guidelines for Food and Beverages in AHS Facilities for ideas on how to make this item healthier.'\", \"There is more than one nutrient that does not meet the criteria.\",\"\")","v":""}]
[{"$f":"IF(A26=\"This item does not meet criteria. Refer to ‘Appendix C in the Nutrition Guidelines for Food and Beverages in AHS Facilities for ideas on how to make this item healthier.'\",\"For this item to be 'Sell More', there must be no red boxes.\",\"\")","v":""}]
[{"$f":"IF(A26=\"This item is 'Sell Less'\",\"Use the nutrient criteria at the bottom of the page to make this product healthier.\",\"\")","v":""}]
[]
[]
[]
[]
[]
["Criteria"]
["A.3 All Soups less than 300 calories"]
[]
["Nutrient ",null,null,null,"Criteria"]
["Saturated Fat",null,null,null,"≤ 2 g"]
["Sodium ",null,null,null,"≤ 400 mg"]

{"sheet":"A4","index":4,"n_rows":41,"n_cols":14,"rows_kept":41,"cut":false,"hidden":false,"merged":[[10,0,10,9],[2,0,2,4],[3,0,3,8],[4,0,4,8],[5,0,5,8],[11,0,11,9],[12,0,12,9],[18,0,18,9],[19,0,19,1],[20,0,20,1],[20,5,20,9],[39,0,39,3],[40,0,40,3],[21,0,21,1],[21,5,21,9],[22,0,22,1],[37,0,37,3],[38,0,38,3],[25,0,25,9]]}
["A.4 Baked goods ≤350 calories",null,null,null,null,null,null,null,null,null,null,null,"Return to Start","Return to Start"]
[]
["Step 1: Determine if this product is 'Do Not Sell'. "]
["Please answer all of the following questions using the dropdown selection on the right. "]
["Will this item be cooked in a deep-fryer? \n "]
["Does this item have more than 350 calories? ",null,null,null,null,null,null,null,null,null,null,null,{"$f":"COUNTIF(J5:J6,\"No\")","v":0}]
[]
[]
[]
[]
[{"$f":"IF(COUNTIF(J5:J6,\"Yes\"),\"This is a ‘Do Not Sell’ item. Refer to the minimum criteria in the Nutrition Guidelines for Food and Beverages in AHS Facilities for more information.'\", IF(COUNTIF(J5:J6,\"\"),\"\",\"Please Proceed to Step 2 below.\"))","v":""}]
[{"$f":"IF(A11=\"This is a ‘Do Not Sell’ item. Refer to the minimum criteria in the Nutrition Guidelines for Food and Beverages in AHS Facilities for more information.'\",\"For this item to be 'Sell More', the questions above must all be answered 'No'.\",\"\" )","v":""}]
[{"$f":"IF(A11=\"This is a ‘Do Not Sell’ item. Refer to the minimum criteria in the Nutrition Guidelines for Food and Beverages in AHS Facilities for more information.'\", \"Hit the 'Clear All' button to compare another item\",\"\")","v":""}]
[]
[]
[]
[]
[{"$f":"IF(OR(J5:J6=\"\"),\"\",\"Step 2: Determine if this item is 'Sell More'\")","v":""}]
[{"$f":"IF(A18=\"Step 2: Determine if this item is 'Sell More'\",\"Please enter the item's nutrient content below.\",\"\")","v":""}]
[{"$f":"IF(A18=\"Step 2: Determine if this item is 'Sell More'\",\"Nutrient\",\"\")","v":""},null,{"$f":"IF(A18=\"Step 2: Determine if this item is 'Sell More'\",\"Enter Value\",\"\")","v":""},null,null,{"$f":"IF(A18=\"Step 2: Determine if this item is 'Sell More'\",\"Legend:\",\"\")","v":""}]
[{"$f":"IF(A18=\"Step 2: Determine if this item is 'Sell More'\",\"Saturated Fat (g)\",\"\")","v":""},null,null,null,null,{"$f":"IF(A18=\"Step 2: Determine if this item is 'Sell More'\",\"Meets Criteria\",\"\")","v":""},null,null,null,null,null,null,{"$f":"IF(C21=\"\",\"\",IF(C21<4,0,IF(C21>=4.1,1,0)))","v":""}]
[{"$f":"IF(A18=\"Step 2: Determine if this item is 'Sell More'\",\"Sodium (mg)\",\"\")","v":""},null,null,null,null,{"$f":"IF(A18=\"Step 2: Determine if this item is 'Sell More'\",\"Does not Meet Criteria\",\"\")","v":""},null,null,null,null,null,null,{"$f":"IF(C22=\"\",\"\",IF(C22<401,0,IF(C22>=400,1)))","v":""}]
[{"$f":"IF(A18=\"Step 2: Determine if this item is 'Sell More'\",\"Sugar (mg)\",\"\")","v":""},null,null,null,null,null,null,null,null,null,null,null,{"$f":"IF(C23=\"\",\"\",IF(C23<24.1,0,IF(C23>=24,1)))","v":""}]
[]
[]
[{"$f":"IF(OR(M21=\"\",M22=\"\",M23=\"\"),\"\",IF(SUM(M21:M23)=0,\"This item is 'Sell More'\",\"This item does not meet criteria. Refer to ‘Appendix C in the Nutrition Guidelines for Food and Beverages in AHS Facilities for ideas on how to make this item healthier.'\"))","v":""}]
[{"$f":"IF(A26=\"This item does not meet criteria. Refer to ‘Appendix C in the Nutrition Guidelines for Food and Beverages in AHS Facilities for ideas on how to make this item healthier.'\", \"There is more than one nutrient that does not meet the criteria.\",\"\")","v":""}]
[{"$f":"IF(A26=\"This item does not meet criteria. Refer to ‘Appendix C in the Nutrition Guidelines for Food and Beverages in AHS Facilities for ideas on how to make this item healthier.'\",\"For this item to be 'Sell More', there must be no red boxes.\",\"\")","v":""}]
[{"$f":"IF(A26=\"This item is 'Sell Less'\",\"Use the nutrient criteria at the bottom of the page to make this product healthier.\",\"\")","v":""}]
[]
[]
[]
[]
[]
["Criteria"]
["A.4 Baked Goods ≤350 calories"]
[]
["Nutrient ",null,null,null,"Criteria"]
["Saturated Fat",null,null,null,"≤ 4 g"]
["Sodium ",null,null,null,"≤ 400 mg"]
["Sugar ",null,null,null,"≤ 24 mg"]

{"sheet":"A5","index":5,"n_rows":41,"n_cols":14,"rows_kept":41,"cut":false,"hidden":false,"merged":[[40,0,40,3],[12,0,12,9],[18,0,18,9],[19,0,19,1],[20,0,20,1],[20,5,20,9],[21,0,21,1],[21,5,21,9],[22,0,22,1],[37,0,37,3],[38,0,38,3],[39,0,39,3],[25,0,25,9],[11,0,11,9],[2,0,2,4],[3,0,3,8],[4,0,4,8],[5,0,5,8],[10,0,10,9]]}
["A.5 Desserts with ≤250 calories",null,null,null,null,null,null,null,null,null,null,null,"Return to Start","Return to Start"]
[]
["Step 1: Determine if this product is 'Do Not Sell'. "]
["Please answer all of the following questions using the dropdown selection on the right. "]
["Will this item be cooked in a deep-fryer? \n "]
["Does this item have more than 250 calories? ",null,null,null,null,null,null,null,null,null,null,null,{"$f":"COUNTIF(J5:J6,\"No\")","v":0}]
[]
[]
[]
[]
[{"$f":"IF(COUNTIF(J5:J6,\"Yes\"),\"Desserts that are more than 250 calories or deep fried are a ‘Do Not Sell’ item. Refer to the minimum criteria in the Nutrition Guidelines for Food and Beverages in AHS Facilities for more information.'\", IF(COUNTIF(J5:J6,\"\"),\"\",\"Please Proceed to Step 2 below.\"))","v":""}]
[{"$f":"IF(A11=\"This is a ‘Do Not Sell’ item. Refer to the minimum criteria in the Nutrition Guidelines for Food and Beverages in AHS Facilities for more information.'\",\"For this item to be 'Sell More', the questions above must all be answered 'No'.\",\"\" )","v":""}]
[{"$f":"IF(A11=\"This is a ‘Do Not Sell’ item. Refer to the minimum criteria in the Nutrition Guidelines for Food and Beverages in AHS Facilities for more information.'\", \"Hit the 'Clear All' button to compare another item.\",\"\")","v":""}]
[]
[]
[]
[]
[{"$f":"IF(OR(J5:J6=\"\"),\"\",\"Step 2: Determine if this item is 'Sell More'\")","v":""}]
[{"$f":"IF(A18=\"Step 2: Determine if this item is 'Sell More'\",\"Please enter the item's nutrient content below.\",\"\")","v":""}]
[{"$f":"IF(A18=\"Step 2: Determine if this item is 'Sell More'\",\"Nutrient\",\"\")","v":""},null,null,null,null,{"$f":"IF(A18=\"Step 2: Determine if this item is 'Sell More'\",\"Legend:\",\"\")","v":""}]
[{"$f":"IF(A18=\"Step 2: Determine if this item is 'Sell More'\",\"Saturated Fat (g)\",\"\")","v":""},null,null,null,null,{"$f":"IF(A18=\"Step 2: Determine if this item is 'Sell More'\",\"Meets Criteria\",\"\")","v":""},null,null,null,null,null,null,{"$f":"IF(C21=\"\",\"\",IF(C21<4,0,IF(C21>=4.1,1,0)))","v":""}]
[{"$f":"IF(A18=\"Step 2: Determine if this item is 'Sell More'\",\"Sodium (mg)\",\"\")","v":""},null,null,null,null,{"$f":"IF(A18=\"Step 2: Determine if this item is 'Sell More'\",\"Does not Meet Criteria\",\"\")","v":""},null,null,null,null,null,null,{"$f":"IF(C22=\"\",\"\",IF(C22<401,0,IF(C22>=400,1)))","v":""}]
[{"$f":"IF(A18=\"Step 2: Determine if this item is 'Sell More'\",\"Sugar (mg)\",\"\")","v":""},null,null,null,null,null,null,null,null,null,null,null,{"$f":"IF(C23=\"\",\"\",IF(C23<24.1,0,IF(C23>=24,1)))","v":""}]
[]
[]
[{"$f":"IF(OR(M21=\"\",M22=\"\",M23=\"\"),\"\",IF(SUM(M21:M23)=0,\"This item is 'Sell More'\",\"This item does not meet criteria. Refer to ‘Appendix C in the Nutrition Guidelines for Food and Beverages in AHS Facilities for ideas on how to make this item healthier.'\"))","v":""}]
[{"$f":"IF(A26=\"This item does not meet criteria. Refer to ‘Appendix C in the Nutrition Guidelines for Food and Beverages in AHS Facilities for ideas on how to make this item healthier.'\", \"There is more than one nutrient that does not meet the criteria.\",\"\")","v":""}]
[{"$f":"IF(A26=\"This item does not meet criteria. Refer to ‘Appendix C in the Nutrition Guidelines for Food and Beverages in AHS Facilities for ideas on how to make this item healthier.'\",\"For this item to be 'Sell More', there must be no red boxes.\",\"\")","v":""}]
[{"$f":"IF(A26=\"This item is 'Sell Less'\",\"Use the nutrient criteria at the bottom of the page to make this product healthier.\",\"\")","v":""}]
[]
[]
[]
[]
[]
["Criteria"]
["A.5 Desserts ≤250 calories"]
[]
["Nutrient ",null,null,null,"Criteria"]
["Saturated Fat",null,null,null,"≤ 4 g"]
["Sodium ",null,null,null,"≤ 400 mg"]
["Sugar ",null,null,null,"≤ 24 mg"]

{"sheet":"A6","index":6,"n_rows":41,"n_cols":14,"rows_kept":41,"cut":false,"hidden":false,"merged":[[11,0,11,5],[10,0,10,9],[2,0,2,4],[3,0,3,8],[4,0,4,8],[40,0,40,3],[18,0,18,9],[19,0,19,1],[20,0,20,1],[20,5,20,9],[21,0,21,1],[21,5,21,9],[37,0,37,3],[38,0,38,3],[39,0,39,3],[22,0,22,1],[25,0,25,9]]}
["A.6 Packaged Snacks with ≤ 250 calories",null,null,null,null,null,null,null,null,null,null,null,"Return to Start","Return to Start"]
[]
["Step 1: Determine if this product is 'Do Not Sell'. "]
["Please answer all of the following questions using the dropdown selection on the right. "]
["Does this item have more than 250 calories?",null,null,null,null,null,null,null,null,null,null,null,{"$f":"COUNTIF(J5:J5,\"No\")","v":0}]
[]
[]
[]
[]
[]
[{"$f":"IF(COUNTIF(J5,\"Yes\"),\"Highly processed snacks (e.g. chips and salty snacks) that are more than 250 calories are a 'Do Not Sell' item. Refer to the minimum criteria in the Nutrition Guidelines for Food and Beverages in AHS Facilities for more information.'\", IF(COUNTIF(J5,\"\"),\"\",\"Please Proceed to Step 2 below.\"))","v":""}]
[{"$f":"IF(A11=\"This is a ‘Do Not Sell’ item. Refer to the minimum criteria in the Nutrition Guidelines for Food and Beverages in AHS Facilities for more information.'\",\"For this item to be 'Sell More', the questions above must all be answered 'No'.\",\"\" )","v":""}]
[]
[]
[]
[]
[]
[{"$f":"IF(OR(J5=\"\"),\"\",\"Step 2: Determine if this item is 'Sell More'\")","v":""}]
[{"$f":"IF(A18=\"Step 2: Determine if this item is 'Sell More'\",\"Please enter the item's nutrient content below.\",\"\")","v":""}]
[{"$f":"IF(A18=\"Step 2: Determine if this item is 'Sell More'\",\"Nutrient\",\"\")","v":""},null,{"$f":"IF(A18=\"Step 2: Determine if this item is 'Sell More'\",\"Enter Value\",\"\")","v":""},null,null,{"$f":"IF(A18=\"Step 2: Determine if this item is 'Sell More'\",\"Legend:\",\"\")","v":""}]
[{"$f":"IF(A18=\"Step 2: Determine if this item is 'Sell More'\",\"Saturated Fat (g)\",\"\")","v":""},null,null,null,null,{"$f":"IF(A18=\"Step 2: Determine if this item is 'Sell More'\",\"Meets Criteria\",\"\")","v":""},null,null,null,null,null,null,{"$f":"IF(C21=\"\",\"\",IF(C21<2.5,0,IF(C21>=2.6,1,0)))","v":""}]
[{"$f":"IF(A18=\"Step 2: Determine if this item is 'Sell More'\",\"Sodium (mg)\",\"\")","v":""},null,null,null,null,{"$f":"IF(A18=\"Step 2: Determine if this item is 'Sell More'\",\"Does not Meet Criteria\",\"\")","v":""},null,null,null,null,null,null,{"$f":"IF(C22=\"\",\"\",IF(C22<230,0,IF(C22>=231,1,0)))","v":""}]
[{"$f":"IF(A18=\"Step 2: Determine if this item is 'Sell More'\",\"Sugar (mg)\",\"\")","v":""},null,null,null,null,null,null,null,null,null,null,null,{"$f":"IF(C23=\"\",\"\",IF(C23<10.1,0,IF(C23>=10,1)))","v":""}]
[]
[]
[{"$f":"IF(OR(M21=\"\",M22=\"\",M23=\"\"),\"\",IF(SUM(M21:M23)=0,\"This item is 'Sell More'\",\"This item does not meet the 'Sell More' criteria. Refer to the nutrient criteria below to choose a healthier item.\"))","v":""}]
[{"$f":"IF(A26=\"This item does not meet criteria. Refer to ‘Appendix C in the Nutrition Guidelines for Food and Beverages in AHS Facilities for ideas on how to make this item healthier.\", \"There is more than one nutrient that does not meet the criteria.\",\"\")","v":""}]
[{"$f":"IF(A26=\"This item does not meet criteria. Refer to ‘Appendix C in the Nutrition Guidelines for Food and Beverages in AHS Facilities for ideas on how to make this item healthier.\",\"For this item to be 'Sell More', there must be no red boxes.\",\"\")","v":""}]
[{"$f":"IF(A26=\"This item is 'Sell Less'\",\"Use the nutrient criteria at the bottom of the page to make this product healthier.\",\"\")","v":""}]
[]
[]
[]
[]
[]
["Criteria"]
["A.6 Packaged Snacks with ≤ 250 calories"]
[]
["Nutrient ",null,null,null,"Criteria"]
["Saturated Fat",null,null,null,"≤ 2.5 g"]
["Sodium ",null,null,null,"≤ 230 mg"]
["Sugar",null,null,null,"≤ 10 mg"]

{"sheet":"A7","index":7,"n_rows":41,"n_cols":14,"rows_kept":41,"cut":false,"hidden":false,"merged":[[20,0,20,1],[20,4,20,6],[2,0,2,4],[4,0,4,8],[10,0,10,9],[11,0,11,9],[12,0,12,9],[15,0,15,8],[19,0,19,1],[18,0,18,2],[17,0,17,9],[16,0,16,7],[3,0,3,8],[39,0,39,3],[40,0,40,3],[21,0,21,1],[21,4,21,6],[22,0,22,1],[37,0,37,3],[38,0,38,3],[25,0,25,9]]}
["A.7 Nuts, Trail Mix, Fruit & Nut Bars  ≤350 calories",null,null,null,null,null,null,null,null,null,null,null,"Return to Start","Return to Start"]
[]
["Step 1: Determine if this product is 'Do Not Sell'. "]
["Please answer all of the following question using the dropdown selection on the right. "]
["Does this item have more than 350 calories? ",null,null,null,null,null,null,null,null,null,null,null,{"$f":"COUNTIF(J5:J5,\"No\")","v":0}]
[]
[]
[]
[]
[]
[{"$f":"IF(COUNTIF(J5,\"Yes\"),\"This is a ‘Do Not Sell’ item. Refer to the minimum criteria in the Nutrition Guidelines for Food and Beverages in AHS Facilities for more information.'\", IF(COUNTIF(J5,\"\"),\"\",\"Please proceed to Step 2 below.\"))","v":""}]
[{"$f":"IF(A11=\"This is a ‘Do Not Sell’ item. Refer to the minimum criteria in the Nutrition Guidelines for Food and Beverages in AHS Facilities for more information.'\",\"For this item to be 'Sell More', the questions above must all be answered 'No'.\",\"\" )","v":""}]
[{"$f":"IF(A11=\"This is a ‘Do Not Sell’ item. Refer to the minimum criteria in the Nutrition Guidelines for Food and Beverages in AHS Facilities for more information.'\", \"Hit the 'Clear All' button to compare another item\",\"\")","v":""}]
[{"$f":"IF(A11=\"Please proceed to step 2 below.\",\"Step 2: Determine if this item contains specific ingredients.\",\"\")","v":""}]
[{"$f":"IF(A11=\"Please proceed to step 2 below.\", \"Please answer the following questions using the dropdown selection on the right.\",\"\")","v":""}]
[{"$f":"IF(A11=\"Please proceed to step 2 below.\", \"Is the first ingredient of this item unsweetened fruit?\",\"\")","v":""},null,null,null,null,null,null,null,null,null,null,null,{"$f":"COUNTIF(J16:J16,\"Yes\")","v":0}]
[{"$f":"IF(OR(M16,\"=1\",\"\"),\"This item is exempt from the sugar criteria. You only need to enter the value for saturated fat and sodium in Step 3 \",\"\")","v":""}]
[{"$f":"IF(OR(J16=\"\"),\"\",\"Step 3: Determine if this item is 'Sell More'\")","v":""}]
[{"$f":"IF(A18=\"Step 3: Determine if this item is 'Sell More'\",\"Please enter the item's nutrient content below.\",\"\")","v":""},null,null,null,null,null,null,null,null,null,null,null,{"$f":"IF(C21=\"\",\"\",IF(C21<6,0,IF(C21>=6.1,1,0)))","v":""}]
[{"$f":"IF(A18=\"Step 3: Determine if this item is 'Sell More'\",\"Nutrient\",\"\")","v":""},null,{"$f":"IF(A18=\"Step 3: Determine if this item is 'Sell More'\",\"Enter Value\",\"\")","v":""},null,{"$f":"IF(A18=\"Step 3: Determine if this item is 'Sell More'\",\"Legend:\",\"\")","v":""},null,null,null,null,null,null,null,{"$f":"IF(C22=\"\",\"\",IF(C22<231,0,IF(C22>=230,1)))","v":""}]
[{"$f":"IF(A18=\"Step 3: Determine if this item is 'Sell More'\",\"Saturated Fat (g)\",\"\")","v":""},null,null,null,{"$f":"IF(A18=\"Step 3: Determine if this item is 'Sell More'\",\"Meets Criteria\",\"\")","v":""},null,null,null,null,null,null,null,{"$f":"IF(C23=\"\",\"\",IF(C23<=10,0,IF(C23>10,1)))","v":""}]
[{"$f":"IF(A18=\"Step 3: Determine if this item is 'Sell More'\",\"Sodium (mg)\",\"\")","v":""},null,null,null,{"$f":"IF(A18=\"Step 3: Determine if this item is 'Sell More'\",\"Does not Meet Criteria\",\"\")","v":""}]
[{"$f":"IF(A18=\"Step 3: Determine if this item is 'Sell More'\",\"Sugar (mg)\",\"\")","v":""}]
[]
[]
[{"$f":"IF(OR(M19=\"\",M20=\"\",M21=\"\"),\"\",IF(SUM(M19:M21)=0,\"This item is 'Sell More'\",\"This product does not meet the Sell More criteria,  see the nutrient criteria below to help you choose a healthier product.\"))","v":""}]
[{"$f":"IF(A26=\"This item does not meet criteria. Refer to ‘Appendix C in the Nutrition Guidelines for Food and Beverages in AHS Facilities for ideas on how to make this item healthier.'\", \"There is more than one nutrient that does not meet the criteria.\",\"\")","v":""}]
[{"$f":"IF(A26=\"This item does not meet criteria. Refer to ‘Appendix C in the Nutrition Guidelines for Food and Beverages in AHS Facilities for ideas on how to make this item healthier.'\",\"For this item to be 'Sell More', there must be no red boxes.\",\"\")","v":""}]
[{"$f":"IF(A26=\"This item is 'Sell Less'\",\"Use the nutrient criteria at the bottom of the page to make this product healthier.\",\"\")","v":""}]
[]
[]
[]
[]
[]
["Criteria"]
["A.7 Nuts, Trail Mix, Fruit & Nut Bars  ≤350 calories"]
[]
["Nutrient ",null,null,null,"Criteria"]
["Saturated Fat",null,null,null,"≤ 6 g"]
["Sodium ",null,null,null,"≤ 230 mg"]
["Sugar",null,null,null,"≤ 10 mg"]

{"sheet":"A8 Water & Carbonated (Bubbly)","index":8,"n_rows":37,"n_cols":14,"rows_kept":37,"cut":false,"hidden":false,"merged":[[23,0,23,9],[21,0,21,1],[20,0,20,1],[6,0,6,8],[7,0,7,8],[20,4,20,6],[12,0,12,9],[13,0,13,9],[18,0,18,2],[19,0,19,1],[17,0,17,9],[2,0,2,4],[3,0,3,6],[4,0,4,8],[5,0,5,8],[11,0,11,9],[10,0,10,8]]}
["A8. Water and Carbonated (Bubbly) Water",null,null,null,null,null,null,null,null,null,null,null,"Return to Start","Return to Start"]
[]
["Step 1"]
["Please answer all of the following question using the dropdown selection on the right. "]
["Does this beverage contain added sugar or any sugar substitutes? ",null,null,null,null,null,null,null,null,null,null,null,{"$f":"COUNTIF(J5:J8,\"No\")","v":0}]
["Does this item contain more than 100% Daily Value of any added vitamin or mineral?"]
["Does this item have unapproved health claims or herbal & botanical ingredients? See Appendix A of Guidelines for more information."]
["Does this item have cautionary statements? (e.g. \"Do not consume more than 2 bottles per day\")"]
["Does this item have more than 12 g of fat, or 42 g of sugar, or 500 mg of sodium, or 330 mg of caffeine?"]
[]
[{"$f":"IF(COUNTIF(J5:J5,\"Yes\"),\"This product should be assessed using 'A9 All Other Beverages'\", IF(COUNTIF(J5:J5,\"\"),\"\",\"\"))","v":""}]
[{"$f":"IF(COUNTIF(J6:J9,\"Yes\"),\"This is a ‘Do Not Sell’ item. Refer to the minimum criteria in the Nutrition Guidelines for Food and Beverages in AHS Facilities for more information.'\", IF(COUNTIF(J6:J9,\"\"),\"\",\"Please proceed to Step 2 below.\"))","v":""}]
[{"$f":"IF(A12=\"This is a ‘Do Not Sell’ item. Refer to the minimum criteria in the Nutrition Guidelines for Food and Beverages in AHS Facilities for more information.'\",\"For this item to be 'Sell More', the questions above must all be answered 'No'.\",\"\" )","v":""}]
[{"$f":"IF(A12=\"This is a ‘Do Not Sell’ item. Refer to the minimum criteria in the Nutrition Guidelines for Food and Beverages in AHS Facilities for more information.'\", \"Hit the 'Clear All' button to compare another item\",\"\")","v":""}]
[]
[]
[]
[{"$f":"IF(OR(J5:J9=\"\"),\"\",\"Step 2: Determine if this item is 'Sell More'\")","v":""}]
[{"$f":"IF(A18=\"Step 2: Determine if this item is 'Sell More'\",\"Please enter the item's nutrient content below.\",\"\")","v":""}]
[{"$f":"IF(A18=\"Step 2: Determine if this item is 'Sell More'\",\"Nutrient\",\"\")","v":""},null,null,null,{"$f":"IF(A18=\"Step 3: Determine if this item is 'Sell More'\",\"Legend:\",\"\")","v":""}]
[{"$f":"IF(A18=\"Step 2: Determine if this item is 'Sell More'\",\"Sodium (mg)\",\"\")","v":""},null,null,null,{"$f":"IF(A18=\"Step 3: Determine if this item is 'Sell More'\",\"Meets Criteria\",\"\")","v":""},null,null,null,null,null,null,null,{"$f":"IF(C21=\"\",\"\",IF(C21<201,1,IF(C21>=200,0,0)))","v":""}]
[]
[]
[{"$f":"IF(OR(M21=\"\"),\"\",IF(SUM(M21:M21)=1,\"This item is 'Sell More'\",\"'This item does not meet criteria. Refer to the nutrient criteria below to choose a healthier product.'\"))","v":""}]
[{"$f":"IF(A24=\"This item does not meet criteria. Refer to ‘Appendix C in the Nutrition Guidelines for Food and Beverages in AHS Facilities for ideas on how to make this item healthier.'\", \"Sodium amounts need to be under 200 mg.\",\"\")","v":""}]
[{"$f":"IF(A24=\"This item does not meet criteria. Refer to ‘Appendix C in the Nutrition Guidelines for Food and Beverages in AHS Facilities for ideas on how to make this item healthier.'\",\"For this item to be 'Sell More', there must be no red boxes.\",\"\")","v":""}]
[{"$f":"IF(A24=\"This item is 'Sell Less'\",\"Use the nutrient criteria at the bottom of the page to make this product healthier.\",\"\")","v":""}]
[]
[]
[]
[]
[]
["Criteria"]
["A8 Water & Carbonated (Bubbly)"]
[]
["Nutrient ",null,null,null,"Criteria"]
["Sodium ",null,null,null,"≤ 200 mg"]

{"sheet":"A9 All Other Beverages","index":9,"n_rows":40,"n_cols":14,"rows_kept":40,"cut":false,"hidden":false,"merged":[[36,0,36,3],[37,0,37,3],[38,0,38,3],[39,0,39,3],[20,0,20,1],[20,4,20,6],[21,0,21,1],[21,4,21,6],[22,0,22,1],[24,0,24,9],[19,0,19,1],[2,0,2,4],[3,0,3,7],[4,0,4,8],[7,0,7,8],[8,0,8,8],[5,0,5,8],[6,0,6,8],[10,0,10,8],[11,0,11,9],[16,0,16,8],[17,0,17,3],[18,0,18,2]]}
["A.9 All Other Beverages",null,null,null,null,null,null,null,null,null,null,null,"Return to Start","Return to Start"]
[]
["Step 1: Determine if this product is 'Do Not Sell'. "]
["Please answer all of the following question using the dropdown selection on the right. "]
["Is the beverage serving size larger than 355 mL?",null,null,null,null,null,null,null,null,null,null,null,{"$f":"COUNTIF(J5:J10,\"Yes\")","v":0}]
["Is this item an energy drink, vitamin water, or kombucha? "]
["Does this item contain more than 100% Daily Value of any added vitamin or mineral?"]
["Does this item have unapproved health claims or herbal & botanical ingredients? See Appendix A of Guidelines for more information."]
["Does this item have cautionary statements? (e.g. \"Do not consume more than 2 bottles per day\")"]
["Does this item have more than 12 g of fat, or 42 g of sugar, or 500 mg of sodium, or 330 mg of caffeine?"]
[{"$f":"IF(COUNTIF(J5:J5,\"Yes\"),\"Beverages between 355mL and 500mL can be sold but do not meet the ‘Sell More Criteria’. Products that are larger than 500mL are a ‘Do Not Sell’ item.\", IF(COUNTIF(J5:J5,\"\"),\"\",\"\"))","v":""}]
[{"$f":"IF(COUNTIF(J6:J10,\"Yes\"),\"This is a ‘Do Not Sell’ item. Refer to the minimum criteria in the Nutrition Guidelines for Food and Beverages in AHS Facilities for more information.'\", IF(COUNTIF(J6:J10,\"\"),\"\",\"Please proceed to Step 2 below.\"))","v":""}]
[]
[]
[]
[{"$f":"IF(A12=\"This is a ‘Do Not Sell’ item. Refer to the minimum criteria in the Nutrition Guidelines for Food and Beverages in AHS Facilities for more information.'\",\"For this item to be 'Sell More', the questions above must all be answered 'No'.\",\"\" )","v":""}]
[{"$f":"IF(A12=\"This is a ‘Do Not Sell’ item. Refer to the minimum criteria in the Nutrition Guidelines for Food and Beverages in AHS Facilities for more information.'\", \"Hit the 'Clear All' button to compare another item\",\"\")","v":""}]
[{"$f":"IF(OR(J5:J10=\"\"),\"\",\"Step 2: Determine if this item is 'Sell More'\")","v":""}]
[{"$f":"IF(A18=\"Step 2: Determine if this item is 'Sell More'\",\"Please enter the item's nutrient content below.\",\"\")","v":""}]
[{"$f":"IF(A18=\"Step 2: Determine if this item is 'Sell More'\",\"Nutrient\",\"\")","v":""},null,{"$f":"IF(A18=\"Step 2: Determine if this item is 'Sell More'\",\"Enter Value\",\"\")","v":""},null,{"$f":"IF(A18=\"Step 3: Determine if this item is 'Sell More'\",\"Legend:\",\"\")","v":""},null,null,null," "]
[{"$f":"IF(A18=\"Step 2: Determine if this item is 'Sell More'\",\"Fat (g)\",\"\")","v":""},null,null,null,{"$f":"IF(A18=\"Step 3: Determine if this item is 'Sell More'\",\"Meets Criteria\",\"\")","v":""},null,null,null,null,null,null,null,{"$f":"IF(C21=\"\",\"\",IF(C21<7.5,0,IF(C21>=7.5,1,0)))","v":""}]
[{"$f":"IF(A18=\"Step 2: Determine if this item is 'Sell More'\",\"Sodium (mg)\",\"\")","v":""},null,null,null,{"$f":"IF(A18=\"Step 3: Determine if this item is 'Sell More'\",\"Does not Meet Criteria\",\"\")","v":""},null,null,null,null,null,null,null,{"$f":"IF(C22=\"\",\"\",IF(C22<201,0,IF(C22>=200,1)))","v":""}]
[{"$f":"IF(A18=\"Step 2: Determine if this item is 'Sell More'\",\"Caffeine (mg)\",\"\")","v":""},null,null,null,null,null,null,null,null,null,null,null,{"$f":"IF(C23=\"\",\"\",IF(C23<=330,0,IF(C23>330,1)))","v":""}]
[]
[{"$f":"IF(OR(M21=\"\",M22=\"\",M23=\"\"),\"\",IF(SUM(M21:M23)=0,\"This item is 'Sell More'\",\"This item does not meet criteria. Refer to the criteria below to help you choose a healthier product. \"))","v":""}]
[{"$f":"IF(A25=\"This item does not meet criteria. Refer to ‘Appendix C in the Nutrition Guidelines for Food and Beverages in AHS Facilities for ideas on how to make this item healthier.'\", \"There is more than one nutrient that does not meet the criteria.\",\"\")","v":""}]
[{"$f":"IF(A25=\"This item does not meet criteria. Refer to ‘Appendix C in the Nutrition Guidelines for Food and Beverages in AHS Facilities for ideas on how to make this item healthier.'\",\"For this item to be 'Sell More', there must be no red boxes.\",\"\")","v":""}]
[{"$f":"IF(A25=\"This item is 'Sell Less'\",\"Use the nutrient criteria at the bottom of the page to make this product healthier.\",\"\")","v":""}]
[]
[]
[]
[]
[]
["Criteria"]
["A9 All Other Beverages"]
[]
["Nutrient ",null,null,null,"Criteria"]
["Fat",null,null,null,"≤ 7.5 g"]
["Sodium ",null,null,null,"≤ 200 mg"]
["Caffeine",null,null,null,"≤ 330 mg"]